fUST/lending_fUST_20240417
["ID","MTS","AMOUNT","RATE_DAILY","PERIOD"]
[322800712,1713329443120,-500.0,0.00032877,2]
[322800713,1713329443129,-500.0,0.00032877,2]
[322800714,1713329443138,-500.0,0.00032877,2]
[322800715,1713329443147,-500.0,0.00032877,2]
[322800716,1713329443158,-500.0,0.00032877,2]
[322800717,1713329443167,-500.0,0.00032877,2]
[322800718,1713329443176,-500.0,0.00032877,2]
[322800719,1713329443185,-500.0,0.00032877,2]
[322800720,1713329443194,-500.0,0.00032877,2]
[322800721,1713329443204,-587.73116803,0.00032877,2]
[322800722,1713329443214,-5200.0,0.000329,9]
[322800723,1713329443227,-2009.679,0.00033,2]
[322800724,1713329443239,-1152.0,0.00033032,2]
[322800725,1713329443250,-156.0,0.00033303,35]
[322800726,1713329443263,-156.0,0.00033313,35]
[322800727,1713329443274,-156.59766546,0.0003332,2]
[322800728,1713329443286,-156.0,0.00033323,35]
[322800729,1713329443296,-4456.22,0.00033328,2]
[322800730,1713329443307,-4456.22,0.00033328,2]
[322800731,1713329443317,-4456.22,0.00033328,2]
[322800732,1713329443329,-4456.22,0.00033328,2]
[322800733,1713329443339,-4456.22,0.00033328,2]
[322800734,1713329443350,-4456.22,0.00033328,2]
[322800735,1713329443360,-4456.22,0.00033328,2]
[322800736,1713329443474,-4456.22,0.00033328,2]
[322800737,1713329443485,-4456.22,0.00033328,2]
[322800738,1713329443494,-4456.22,0.00033328,2]
[322800739,1713329443505,-186.93924961,0.00033332,10]
[322800740,1713329443516,-222589.89891023,0.00033333,7]
[322800741,1713329443774,-361.60536711,0.00021285,2]
[322800742,1713329443783,-888.43676539,0.00021286,2]
[322800743,1713329443792,-154.86062544,0.00021286,2]
[322800744,1713329443801,-965.39339888,0.00021286,2]
[322800745,1713329443809,-159.82080584,0.00022556,2]
[322800746,1713329443819,-155.81741288,0.00022556,2]
[322800747,1713329443828,-256.7939781,0.00022556,2]
[322800748,1713329443837,-181.27172177,0.00022556,4]
[322800749,1713329443847,-2459.88488251,0.00022556,2]
[322800750,1713329443856,-193.34893369,0.00022556,2]
[322800751,1713329443865,-270.62839001,0.00022556,2]
[322800752,1713329443874,-255.03733938,0.00024688,2]
[322800753,1713329443884,-160.55430088,0.00024688,2]
[322800754,1713329443893,-800.8369821,0.000275,17]
[322800755,1713329443904,-6918.16548475,0.00033333,7]
[322800764,1713329449765,3669.73799739,0.00022667,10]
[322800768,1713329465787,3669.73799739,0.00022667,10]
[322800769,1713329481797,2631.11062712,0.00022667,10]
[322800779,1713329533788,3669.73799739,0.00022667,10]
[322800781,1713329560870,-646.56412046,0.00022563,2]
[322800782,1713329560901,-361.60536711,0.00022662,2]
[322800783,1713329560973,-4560.66102486,0.00022662,2]
[322800785,1713329609444,-882.7275178,0.00022557,2]
[322800786,1713329609474,-154.86062544,0.00022558,2]
[322800787,1713329609504,-602.61216035,0.00022558,2]
[322800788,1713329609542,-300.0,0.00022559,2]
[322800789,1713329609654,-1475.59939282,0.00022559,2]
[322800793,1713329675450,-438.77681728,0.00022455,2]
[322800794,1713329675475,-100.44636544,0.00022455,2]
[322800811,1713329813882,1130.121303,0.00020326,2]
[322800812,1713329872244,236.951968,0.00020046,2]
[322800813,1713329886023,19167.30700604,0.00020326,2]
[322800814,1713329886996,172.90447287,0.00020326,2]
[322800815,1713329898233,770.21037316,0.00019181,2]
[322800816,1713329908032,2054.05255548,0.00020326,2]
[322800818,1713330036600,1078.405252,0.00020201,2]
[322800819,1713330090674,7252.04540657,0.00020201,2]
[322800820,1713330115705,24900.0,0.00020189,2]
[322800821,1713330144287,154.86062544,0.00020189,2]
[322800822,1713330162314,154.98223353,0.00020189,2]
[322800825,1713330282525,250.0,0.00020068,2]
[322800826,1713330322138,650.487245,0.00020062,2]
[322800827,1713330327688,157.04962732,0.00020061,2]
[322800828,1713330327852,1089.26071762,0.00020061,2]
[322800829,1713330340818,555.35032264,0.00020068,2]
[322800830,1713330340866,530.66655432,0.00020068,2]
[322800831,1713330344799,211.83113783,0.00020067,2]
[322800832,1713330346580,154.86062544,0.00020067,2]
[322800833,1713330347613,1000.0,0.00020067,2]
[322800834,1713330365176,1022.43,0.00021,2]
[322800835,1713330388346,385.58155713,0.00020067,2]
[322800836,1713330405441,168.69885,0.00019774,2]
[322800837,1713330410376,385.58155713,0.00020067,2]
[322800838,1713330428346,194.74099993,0.00020067,2]
[322800839,1713330442422,1282.37861356,0.00020941,2]
[322800840,1713330545903,2958.41300752,0.00020931,2]
[322800841,1713330584295,1200.88700204,0.000189,2]
[322800842,1713330604323,10000.0,0.000252,10]
[322800894,1713330632003,-236.42124196,0.0002101,2]
[322800896,1713330632013,-3833.1474602,0.0002101,2]
[322800898,1713330632024,-1961.08138116,0.0002101,2]
[322800900,1713330632033,-1934.55003292,0.0002101,2]
[322800902,1713330632042,-154.86062544,0.0002101,2]
[322800904,1713330632051,-31262.99119214,0.0002101,2]
[322800906,1713330632060,-154.86062544,0.0002101,2]
[322800909,1713330632071,-471.02610279,0.00021011,2]
[322800911,1713330632081,-2125.76560283,0.00021011,2]
[322800912,1713330632090,-2096.98803724,0.00021011,2]
[322800914,1713330632099,-400.0,0.00021011,2]
[322800916,1713330632108,-154.86062544,0.00021011,2]
[322800918,1713330632117,-154.86062544,0.00021011,2]
[322800920,1713330632126,-881.0914059,0.00021011,2]
[322800922,1713330632135,-154.86062544,0.00021012,2]
[322800924,1713330632145,-157.5764134,0.00021012,2]
[322800927,1713330632155,-154.86062544,0.00021012,2]
[322800929,1713330632165,-1488.61335239,0.00021012,2]
[322800931,1713330632177,-154.86062544,0.00021012,2]
[322800932,1713330632186,-525.74547902,0.00021012,2]
[322800934,1713330632195,-1575.3401522,0.00021012,2]
[322800936,1713330632204,-2584.94589356,0.00021012,2]
[322800938,1713330632213,-602.61216035,0.00021012,2]
[322800940,1713330632223,-468.94530634,0.00021012,2]
[322800942,1713330632232,-563.87316233,0.00021013,2]
[322800944,1713330632241,-539.22318272,0.00021013,2]
[322800946,1713330632250,-1000.0,0.00021013,2]
[322800949,1713330632260,-216.18479097,0.00021013,2]
[322800950,1713330632269,-241.20667916,0.00021013,2]
[322800952,1713330632278,-205.83283873,0.00021014,2]
[322800954,1713330632288,-300.0,0.00021014,2]
[322800955,1713330632297,-154.86062544,0.00021014,2]
[322800957,1713330632306,-300.0,0.00021014,2]
[322800959,1713330632316,-154.86062544,0.00021014,2]
[322800960,1713330632325,-361.60536711,0.00021014,2]
[322800961,1713330632334,-937.89373734,0.00021014,2]
[322800962,1713330632343,-2060.79746627,0.00021014,2]
[322800979,1713330638047,-7858.55367278,0.00021009,2]
[322800980,1713330638057,-2621.14214872,0.00021009,2]
[322800981,1713330638066,-157.04962732,0.00021009,2]
[322800982,1713330638079,-207.65285215,0.00021009,2]
[322800983,1713330638088,-2942.63433838,0.00021009,2]
[322800984,1713330638098,-154.86062544,0.00021009,2]
[322800985,1713330638107,-154.86062544,0.00021009,2]
[322800986,1713330638116,-500.0,0.00021013,2]
[322800987,1713330638124,-500.0,0.00021013,2]
[322800988,1713330638133,-500.0,0.00021013,2]
[322800989,1713330638142,-377.14585265,0.00021013,2]
[322800990,1713330638150,-500.0,0.00021013,2]
[322800991,1713330638159,-500.0,0.00021013,2]
[322800992,1713330638168,-500.0,0.00021013,2]
[322800993,1713330638177,-471.94191925,0.00021013,2]
[322800994,1713330638186,-500.0,0.00021013,2]
[322800995,1713330638194,-500.0,0.00021013,2]
[322800996,1713330638203,-500.0,0.00021013,2]
[322800997,1713330638212,-500.0,0.00021013,2]
[322800998,1713330638221,-246.07319829,0.00021013,2]
[322800999,1713330638230,-57028.51090323,0.00021014,2]
[322801000,1713330638239,-226.88935057,0.00021015,2]
[322801001,1713330638248,-154.86062544,0.00021015,2]
[322801002,1713330638257,-154.86062544,0.00021015,2]
[322801003,1713330638266,-237.92490957,0.00021015,2]
[322801004,1713330638275,-9563.28200328,0.00021015,2]
[322801005,1713330638285,-474.19997224,0.00021015,2]
[322801006,1713330638294,-965.39339888,0.00021015,2]
[322801007,1713330638303,-467.87279548,0.00021015,2]
[322801008,1713330638313,-3742.37168361,0.00021015,2]
[322801009,1713330638322,-154.86062544,0.00021016,2]
[322801010,1713330638331,-154.86062544,0.00021016,2]
[322801011,1713330638340,-783.87866091,0.00021016,2]
[322801012,1713330638350,-1089.26071762,0.00021016,2]
[322801013,1713330638359,-2008.53667804,0.00021016,2]
[322801014,1713330638368,-154.86062544,0.00021016,2]
[322801015,1713330638377,-688.59429255,0.00021016,2]
[322801016,1713330638386,-193.3820055,0.00021016,2]
[322801017,1713330638396,-154.86062544,0.00021016,2]
[322801018,1713330638405,-308.13476314,0.00021017,2]
[322801019,1713330638414,-154.86062544,0.00021017,2]
[322801020,1713330638424,-154.86062544,0.00021017,2]
[322801021,1713330638433,-282.92215931,0.00021018,2]
[322801022,1713330638442,-637.24701536,0.00021018,2]
[322801023,1713330638451,-500.0,0.00021018,2]
[322801024,1713330638461,-500.0,0.00021018,2]
[322801025,1713330638470,-266.7220136,0.00021018,2]
[322801026,1713330638479,-500.0,0.00021018,2]
[322801027,1713330638488,-500.0,0.00021018,2]
[322801028,1713330638499,-500.0,0.00021018,2]
[322801029,1713330638509,-500.0,0.00021018,2]
[322801030,1713330638519,-328.12722936,0.00021018,2]
[322801031,1713330638530,-500.0,0.00021018,2]
[322801032,1713330638540,-390.22078307,0.00021018,2]
[322801033,1713330638668,-138942.45775299,0.00021019,2]
[322801034,1713330638679,-203.77229803,0.00021028,2]
[322801035,1713330638691,-4098.02208353,0.00021031,2]
[322801036,1713330638701,-285.26603949,0.00021052,2]
[322801037,1713330638711,-157.71942641,0.00021052,2]
[322801038,1713330638721,-240.17741316,0.00021061,2]
[322801039,1713330638731,-156.11880533,0.00021065,2]
[322801040,1713330638740,-155.55491625,0.00021065,2]
[322801041,1713330638750,-302.11538839,0.00021065,2]
[322801042,1713330638759,-162.34978659,0.00021065,2]
[322801043,1713330638769,-155.29440472,0.00021065,2]
[322801044,1713330638778,-193.89650112,0.00021065,2]
[322801045,1713330638788,-1556.746214,0.00021065,2]
[322801046,1713330638797,-171.88876971,0.00021065,2]
[322801047,1713330638806,-161.06681622,0.00021065,2]
[322801048,1713330638816,-155.11799303,0.00021065,2]
[322801049,1713330638827,-155.25574435,0.00021065,2]
[322801050,1713330638836,-300.63943999,0.00021065,2]
[322801051,1713330638848,-294.4155708,0.00021065,2]
[322801052,1713330638858,-209.49598225,0.00021065,2]
[322801053,1713330638867,-163.14584412,0.00021065,2]
[322801054,1713330638876,-8509.19658507,0.00021065,2]
[322801055,1713330638886,-1679.89654715,0.00021075,2]
[322801056,1713330638897,-173.53068446,0.00021075,2]
[322801057,1713330638906,-276.13541356,0.00021076,2]
[322801058,1713330638915,-172.10563131,0.00021076,2]
[322801059,1713330638925,-181.59252504,0.00021076,2]
[322801060,1713330638935,-155.00650324,0.00021187,2]
[322801061,1713330638946,-154.93886695,0.00021188,2]
[322801062,1713330638955,-157.35093938,0.00021193,2]
[322801063,1713330638964,-245.08858742,0.00021194,2]
[322801064,1713330638974,-151.61079537,0.00021212,2]
[322801065,1713330638983,-155.09122506,0.00021313,2]
[322801066,1713330638992,-155.26788321,0.00021313,2]
[322801067,1713330639003,-502.50062275,0.00021313,2]
[322801068,1713330639014,-186.43714387,0.00021313,2]
[322801069,1713330639023,-1315.66940288,0.00021313,2]
[322801070,1713330639033,-155.32511465,0.00021313,2]
[322801071,1713330639042,-5546.87064381,0.00021313,2]
[322801072,1713330639052,-249.93395778,0.00021317,2]
[322801073,1713330639061,-154.9608051,0.00021317,2]
[322801074,1713330639072,-155.04342715,0.00021317,2]
[322801075,1713330639082,-164.5222439,0.00021317,2]
[322801076,1713330639092,-309.65339488,0.00021317,2]
[322801077,1713330639102,-376.69846939,0.00021317,2]
[322801078,1713330639113,-186.90812025,0.00021322,2]
[322801079,1713330639124,-213.29432251,0.00021331,2]
[322801080,1713330639134,-158.857458,0.00022,2]
[322801081,1713330639145,-4756.24864476,0.0002235,2]
[322801082,1713330639155,-154.88227234,0.00022453,2]
[322801083,1713330639165,-154.89613237,0.00022453,2]
[322801084,1713330639175,-309.69393932,0.00022453,2]
[322801085,1713330639186,-154.90194483,0.00022454,2]
[322801086,1713330639197,-162.43617251,0.0002266,2]
[322801087,1713330639206,-885.63775828,0.0002266,2]
[322801088,1713330639216,-155.66957326,0.0002266,2]
[322801089,1713330639226,-2958.4130075,0.00022673,2]
[322801090,1713330639237,-420.0,0.00022858,2]
[322801091,1713330639246,-243.24834116,0.00023,2]
[322801092,1713330639256,-420.0,0.00023115,2]
[322801093,1713330639265,-1200.88700204,0.000239,2]
[322801094,1713330639275,-2958.4130075,0.00024416,2]
[322801095,1713330639285,-380.0,0.00024658,2]
[322801096,1713330639294,-157.08313082,0.00024682,2]
[322801097,1713330639304,-155.24860679,0.00024685,2]
[322801098,1713330639313,-409.85256063,0.00024687,2]
[322801099,1713330639325,-587.0,0.00024864,2]
[322801100,1713330639334,-587.0,0.00025427,2]
[322801101,1713330639343,-1216.82937161,0.000255,4]
[322801102,1713330639352,-345.70373766,0.000259,2]
[322801103,1713330639362,-623.4728017,0.00026125,2]
[322801105,1713330639371,-2958.4130075,0.00026158,2]
[322801106,1713330639381,-8507.18295185,0.00027,2]
[322801107,1713330639390,-208.33101508,0.00027,2]
[322801108,1713330639399,-224.16940689,0.00027,2]
[322801109,1713330639409,-823.0,0.00027046,2]
[322801110,1713330639418,-500.0,0.00027397,2]
[322801111,1713330639427,-500.0,0.00027397,2]
[322801112,1713330639436,-500.0,0.00027397,2]
[322801113,1713330639446,-500.0,0.00027397,2]
[322801114,1713330639456,-261.33318344,0.00027397,2]
[322801115,1713330639465,-500.0,0.00027397,2]
[322801116,1713330639474,-500.0,0.00027397,2]
[322801117,1713330639484,-500.0,0.00027397,2]
[322801118,1713330639493,-500.0,0.00027397,2]
[322801119,1713330639502,-500.0,0.00027397,2]
[322801120,1713330639512,-500.0,0.00027397,2]
[322801121,1713330639521,-500.0,0.00027397,2]
[322801122,1713330639530,-500.0,0.00027397,2]
[322801123,1713330639540,-500.0,0.00027397,2]
[322801124,1713330639549,-500.0,0.00027397,2]
[322801125,1713330639558,-500.0,0.00027397,2]
[322801126,1713330639567,-500.0,0.00027397,2]
[322801127,1713330639578,-500.0,0.00027397,2]
[322801128,1713330639587,-365.332159,0.00027397,2]
[322801129,1713330639597,-9170.8493847,0.00027397,2]
[322801130,1713330639606,-164.36071,0.00027397,2]
[322801131,1713330639615,-166.666666,0.00027397,2]
[322801132,1713330639625,-1000.0,0.00027397,2]
[322801133,1713330639634,-755.44188678,0.000274,2]
[322801134,1713330639644,-974.17573871,0.000274,2]
[322801135,1713330639653,-620.17364009,0.00027432,2]
[322801136,1713330639663,-800.8369821,0.000275,17]
[322801137,1713330639672,-38188.96181052,0.000275,2]
[322801138,1713330639681,-2532.65284847,0.000279,2]
[322801139,1713330639691,-2958.4130075,0.000279,2]
[322801140,1713330639700,-823.0,0.0002797,2]
[322801141,1713330639710,-676.268158,0.00027999,2]
[322801142,1713330639720,-676.268158,0.00027999,2]
[322801143,1713330639730,-151.0,0.00027999,2]
[322801144,1713330639739,-151.0,0.00027999,2]
[322801145,1713330639748,-151.0,0.00027999,2]
[322801146,1713330639757,-151.0,0.00027999,2]
[322801147,1713330639767,-88576.60355661,0.00028,5]
[322801148,1713330639776,-120573.14122696,0.00028,14]
[322801149,1713330639785,-51741.16156133,0.00028,2]
[322801150,1713330639794,-151.0,0.00028,2]
[322801151,1713330639804,-151.0,0.00028,2]
[322801152,1713330639814,-151.0,0.00028,2]
[322801153,1713330639824,-164.507766,0.00028,2]
[322801154,1713330639833,-164.507766,0.00028,2]
[322801155,1713330639845,-151.0,0.00028,2]
[322801156,1713330639855,-151.0,0.00028,2]
[322801157,1713330639864,-151.0,0.00028,2]
[322801159,1713330639873,-151.0,0.00028,2]
[322801160,1713330639882,-173.556493,0.00028,2]
[322801161,1713330639892,-203.031825,0.00028,2]
[322801162,1713330639901,-203.031825,0.00028,2]
[322801163,1713330639911,-203.031825,0.00028,2]
[322801164,1713330639920,-203.031825,0.00028,2]
[322801165,1713330639929,-676.268158,0.00028,2]
[322801166,1713330639939,-676.268158,0.00028,2]
[322801167,1713330639948,-151.0,0.00028,2]
[322801168,1713330639958,-151.0,0.00028,2]
[322801169,1713330639967,-151.0,0.00028,2]
[322801170,1713330639976,-151.0,0.00028,2]
[322801171,1713330639985,-7519.535238,0.00028,2]
[322801172,1713330639994,-7519.535238,0.00028,2]
[322801173,1713330640003,-151.0,0.00028,2]
[322801174,1713330640012,-151.0,0.00028,2]
[322801175,1713330640022,-607.449852,0.00028,2]
[322801176,1713330640031,-607.449852,0.00028,2]
[322801177,1713330640040,-151.0,0.00028,2]
[322801178,1713330640049,-395.718899,0.00028,2]
[322801179,1713330640058,-395.718899,0.00028,2]
[322801180,1713330640067,-151.0,0.00028,2]
[322801181,1713330640077,-151.0,0.00028,2]
[322801182,1713330640086,-151.0,0.00028,2]
[322801183,1713330640095,-151.0,0.00028,2]
[322801184,1713330640104,-151.0,0.00028,2]
[322801185,1713330640113,-166.666666,0.00028038,2]
[322801186,1713330640122,-685.99191428,0.00028226,2]
[322801187,1713330640132,-166.666666,0.00028679,2]
[322801188,1713330640141,-3729.33559342,0.0002877,2]
[322801189,1713330640150,-151.0,0.0002877,2]
[322801190,1713330640159,-151.0,0.0002877,2]
[322801191,1713330640169,-151.0,0.000289,2]
[322801192,1713330640178,-151.0,0.000289,2]
[322801193,1713330640187,-5000.0,0.00029,2]
[322801194,1713330640196,-164.507766,0.00029,2]
[322801195,1713330640206,-164.507766,0.00029,2]
[322801196,1713330640216,-151.0,0.00029,2]
[322801197,1713330640225,-151.0,0.00029,2]
[322801198,1713330640234,-203.031825,0.00029,2]
[322801199,1713330640243,-203.031825,0.00029,2]
[322801200,1713330640252,-676.268158,0.00029,2]
[322801201,1713330640261,-676.268158,0.00029,2]
[322801202,1713330640270,-151.0,0.00029,2]
[322801203,1713330640279,-151.0,0.00029,2]
[322801204,1713330640288,-7519.535238,0.00029,2]
[322801205,1713330640296,-7519.535238,0.00029,2]
[322801206,1713330640306,-151.0,0.00029,2]
[322801207,1713330640315,-198.583783,0.00029,2]
[322801208,1713330640325,-607.449852,0.00029,2]
[322801209,1713330640334,-607.449852,0.00029,2]
[322801210,1713330640343,-152.874669,0.00029,2]
[322801211,1713330640352,-395.718899,0.00029,2]
[322801212,1713330640362,-395.718899,0.00029,2]
[322801213,1713330640370,-151.0,0.00029,2]
[322801214,1713330640379,-151.0,0.00029,2]
[322801215,1713330640388,-151.0,0.00029,2]
[322801216,1713330640398,-166.666666,0.00029321,2]
[322801217,1713330640407,-1152.0,0.0002942,2]
[322801218,1713330640417,-1790.54442132,0.0002978,10]
[322801219,1713330640426,-654.01660386,0.0002985,30]
[322801220,1713330640435,-1532.93270246,0.0002985,30]
[322801221,1713330640444,-744.86049233,0.0002985,30]
[322801222,1713330640453,-383.06367649,0.000299,2]
[322801223,1713330640463,-166.666666,0.00029962,2]
[322801224,1713330640472,-154.86062544,0.0003,2]
[322801225,1713330640481,-3000.0,0.0003,4]
[322801226,1713330640490,-1243.08924304,0.0003,4]
[322801227,1713330640500,-154.86062544,0.0003,4]
[322801228,1713330640509,-4848.21770199,0.0003,5]
[322801229,1713330640519,-154.86062544,0.0003,4]
[322801230,1713330640528,-154.86062544,0.0003,4]
[322801231,1713330640537,-323452.88757406,0.0003,2]
[322801232,1713330640546,-9495.72008791,0.0003,5]
[322801233,1713330640555,-26677.24007868,0.0003,2]
[322801234,1713330640565,-5594.34889524,0.0003,7]
[322801235,1713330640576,-151.0,0.0003,2]
[322801236,1713330640585,-151.0,0.0003,2]
[322801237,1713330640594,-151.0,0.0003,2]
[322801238,1713330640603,-151.0,0.0003,2]
[322801239,1713330640612,-151.0,0.0003,2]
[322801240,1713330640621,-151.0,0.0003,2]
[322801241,1713330640630,-151.0,0.0003,2]
[322801242,1713330640639,-151.0,0.0003,2]
[322801243,1713330640648,-161.0,0.0003,2]
[322801244,1713330640657,-151.0,0.0003,2]
[322801245,1713330640666,-151.0,0.0003,2]
[322801246,1713330640676,-151.0,0.0003,2]
[322801247,1713330640685,-151.0,0.0003,2]
[322801248,1713330640694,-164.507766,0.0003,2]
[322801249,1713330640703,-164.507766,0.0003,2]
[322801250,1713330640712,-164.507766,0.0003,2]
[322801251,1713330640721,-164.507766,0.0003,2]
[322801252,1713330640731,-151.0,0.0003,2]
[322801253,1713330640739,-151.0,0.0003,2]
[322801254,1713330640748,-151.0,0.0003,2]
[322801255,1713330640757,-248.156179,0.0003,2]
[322801256,1713330640767,-203.031825,0.0003,2]
[322801257,1713330640777,-203.031825,0.0003,2]
[322801258,1713330640786,-203.031825,0.0003,2]
[322801260,1713330640796,-203.031825,0.0003,2]
[322801262,1713330640806,-253.64617891,0.0003,4]
[322801264,1713330640821,-676.268158,0.0003,2]
[322801265,1713330640837,-676.268158,0.0003,2]
[322801267,1713330640850,-676.268158,0.0003,2]
[322801269,1713330640862,-676.268158,0.0003,2]
[322801270,1713330640872,-151.0,0.0003,2]
[322801272,1713330640882,-151.841853,0.0003,2]
[322801273,1713330640892,-151.0,0.0003,2]
[322801274,1713330640901,-151.0,0.0003,2]
[322801275,1713330640911,-151.0,0.0003,2]
[322801276,1713330640920,-151.0,0.0003,2]
[322801277,1713330640930,-7519.535238,0.0003,2]
[322801278,1713330640940,-7519.535238,0.0003,2]
[322801279,1713330640950,-7519.535238,0.0003,2]
[322801280,1713330640960,-7519.535238,0.0003,2]
[322801281,1713330640970,-151.0,0.0003,2]
[322801282,1713330640979,-151.0,0.0003,2]
[322801283,1713330640989,-607.449852,0.0003,2]
[322801284,1713330641002,-607.449852,0.0003,2]
[322801285,1713330641014,-607.449852,0.0003,2]
[322801286,1713330641023,-607.449852,0.0003,2]
[322801287,1713330641033,-395.718899,0.0003,2]
[322801288,1713330641042,-395.718899,0.0003,2]
[322801289,1713330641051,-395.718899,0.0003,2]
[322801290,1713330641060,-395.718899,0.0003,2]
[322801291,1713330641070,-151.0,0.0003,2]
[322801292,1713330641081,-151.0,0.0003,2]
[322801293,1713330641091,-151.0,0.0003,2]
[322801294,1713330641101,-151.0,0.0003,2]
[322801295,1713330641111,-151.0,0.0003,2]
[322801296,1713330641121,-151.0,0.0003,2]
[322801297,1713330641130,-151.0,0.0003,2]
[322801298,1713330641140,-151.256745,0.0003,2]
[322801299,1713330641149,-151.0,0.0003,2]
[322801300,1713330641159,-151.0,0.0003,2]
[322801301,1713330641168,-650.487245,0.00030092,2]
[322801302,1713330641178,-500.0,0.00030136,2]
[322801303,1713330641187,-195.803347,0.00030137,2]
[322801304,1713330641197,-195.803347,0.00030137,41]
[322801305,1713330641207,-195.803347,0.00030137,80]
[322801306,1713330641217,-195.803347,0.00030137,119]
[322801307,1713330641226,-500.0,0.00030191,2]
[322801308,1713330641235,-500.0,0.00030246,2]
[322801309,1713330641244,-184.5552508,0.00030301,2]
[322801310,1713330641253,-166.666666,0.00030603,2]
[322801311,1713330641262,-1152.0,0.00030767,2]
[322801312,1713330641272,-150.95011599,0.00030799,2]
[322801313,1713330641281,-320.4553623,0.000308,10]
[322801314,1713330641291,-1961.92360376,0.00031,2]
[322801315,1713330641301,-500.0,0.00031,2]
[322801316,1713330641310,-586.0,0.000315,2]
[322801317,1713330641319,-161.0,0.00031644,2]
[322801318,1713330641330,-150.0,0.00031799,2]
[322801319,1713330641340,-160.26954422,0.0003189,10]
[322801320,1713330641349,-1259.5179488,0.00032,3]
[322801321,1713330641359,-1613.0,0.00032002,2]
[322801322,1713330641368,-299.0,0.0003252,5]
[322801323,1713330641377,-1000.733791,0.00032877,2]
[322801324,1713330641386,-1000.733791,0.00032877,2]
[322801325,1713330641396,-1000.733791,0.00032877,2]
[322801326,1713330641406,-1000.733791,0.00032877,2]
[322801327,1713330641415,-1000.733791,0.00032877,2]
[322801328,1713330641425,-1000.733791,0.00032877,2]
[322801329,1713330641435,-1000.733791,0.00032877,2]
[322801330,1713330641444,-1000.733791,0.00032877,2]
[322801331,1713330641454,-1000.733791,0.00032877,2]
[322801332,1713330641463,-1000.733791,0.00032877,2]
[322801333,1713330641473,-500.0,0.00032877,2]
[322801334,1713330641483,-500.0,0.00032877,2]
[322801335,1713330641493,-500.0,0.00032877,2]
[322801336,1713330641502,-500.0,0.00032877,2]
[322801337,1713330641511,-587.73116803,0.00032877,2]
[322801338,1713330641521,-500.0,0.00032877,2]
[322801339,1713330641530,-500.0,0.00032877,2]
[322801340,1713330641539,-500.0,0.00032877,2]
[322801341,1713330641549,-500.0,0.00032877,2]
[322801342,1713330641558,-500.0,0.00032877,2]
[322801343,1713330641567,-5200.0,0.000329,9]
[322801344,1713330641578,-365.332159,0.00033165,2]
[322801345,1713330641587,-164.0,0.00033226,2]
[322801346,1713330641597,-151.0,0.0003329,2]
[322801347,1713330641606,-151.0,0.0003329,2]
[322801348,1713330641615,-4456.22,0.00033291,2]
[322801349,1713330641625,-4456.22,0.00033291,2]
[322801350,1713330641634,-4456.22,0.00033291,2]
[322801351,1713330641745,-4456.22,0.00033291,2]
[322801352,1713330641754,-4456.22,0.00033291,2]
[322801353,1713330641763,-4456.22,0.00033291,2]
[322801354,1713330641773,-4456.22,0.00033291,2]
[322801355,1713330641782,-4456.22,0.00033291,2]
[322801356,1713330641791,-4456.22,0.00033291,2]
[322801357,1713330641801,-4456.22,0.00033291,2]
[322801358,1713330641810,-151.0,0.00033291,2]
[322801359,1713330641819,-256.582378,0.00033291,2]
[322801360,1713330641831,-151.0,0.00033291,2]
[322801361,1713330641840,-164.507766,0.00033291,2]
[322801362,1713330641853,-164.507766,0.00033291,2]